[Event "GM ZIA Smirity-B 2025"]
[Site "Dhaka"]
[Date "2025.02.20"]
[Round "6.2"]
[White "Rubel, Hossen"]
[Black "Zoar Haque, Prodhan"]
[Result "1/2-1/2"]
[Annotator "RC"]
[ECO "A85"]
[WhiteElo "1921"]
[BlackElo "1947"]
[PlyCount "116"]
[EventDate "2025.02.17"]
[EventType "swiss"]
[EventCountry "BAN"]
[SourceTitle "playchess.com"]
[Source "ChessBase"]
[SourceQuality "1"]
[TimeControl "5400+30"]

1. d4 {[%emt 0:00:04]} f5 {[%emt 0:11:17]} 2. Nf3 {[%emt 0:01:13]} Nf6 {[%emt 0:00:04]} 3. c4 {[%emt 0:01:38]} e6 {[%emt 0:00:08]} 4. Nc3 {[%emt 0:00:09]} d6 {[%emt 0:02:30]} 5. Bg5 {[%emt 0:01:27]} Be7 {[%emt 0:00:15]} 6. e3 {[%emt 0:00:24]} Nbd7 {[%emt 0:04:28]} 7. Be2 {[%emt 0:00:19]} O-O {[%emt 0:00:18]} 8. O-O {[%emt 0:00:19]} b6 {[%emt 0:00:49]} 9. a4 {[%emt 0:02:23]} a5 {[%emt 0:00:21]} 10. Qc2 {[%emt 0:02:29]} Bb7 {[%emt 0:00:07]} 11. d5 {[%emt 0:02:06]} e5 {[%emt 0:08:39]} 12. Qxf5 {[%emt 0:00:41]} Nc5 {[%emt 0:00:35]} 13. Bxf6 {[%emt 0:01:28]} Rxf6 {[%emt 0:00:23]} 14. Qc2 {[%emt 0:00:06]} Bc8 {[%emt 0:01:40]} 15. e4 {[%emt 0:00:30]} Bd7 {[%emt 0:01:25]} 16. Nd1 {[%emt 0:05:47]} Qe8 {[%emt 0:00:33]} 17. Nc3 {[%emt 0:03:00]} Qg6 {[%emt 0:03:44]} 18. Nh4 {[%emt 0:01:07]} Qg5 {[%emt 0:00:07]} 19. Nf3 {[%emt 0:00:36]} Qg6 {[%emt 0:00:54]} 20. Nh4 {[%emt 0:01:14]} Qf7 {[%emt 0:00:01]} 21. Nf3 {[%emt 0:02:01]} Rf4 {[%emt 0:00:39]} 22. Ne1 {[%emt 0:01:00]} Rf6 {[%emt 0:02:13]} 23. Nd3 {[%emt 0:01:08]} Rf8 {[%emt 0:01:54]} 24. Nxc5 {[%emt 0:00:14]} dxc5 {[%emt 0:00:09]} 25. Nd1 {[%emt 0:01:57]} Qg6 {[%emt 0:00:38]} 26. Qd3 {[%emt 0:00:44]} Rf4 {[%emt 0:00:25]} 27. Nc3 {[%emt 0:08:27]} Bh4 {[%emt 0:00:23]} 28. g3 {[%emt 0:01:57]} Bh3 {[%emt 0:00:17]} 29. d6 {[%emt 0:00:35]} c6 {[%emt 0:02:45]} 30. Rad1 {[%emt 0:02:19]} Bxf1 {[%emt 0:00:57]} 31. Rxf1 {[%emt 0:00:07]} R4f6 {[%emt 0:00:31]} 32. Qc2 {[%emt 0:01:12]} Rxd6 {[%emt 0:00:17]} 33. Nb1 {[%emt 0:05:44]} Bg5 {[%emt 0:57:34]} 34. Kg2 {[%emt 0:01:51]} Rd4 {[%emt 0:00:00]} 35. f3 {[%emt 0:06:29]} Qd6 {[%emt 0:00:00]} 36. Qb3 {[%emt 0:01:12]} Qc7 {[%emt 0:00:00]} 37. h4 {[%emt 0:01:07]} Bd2 {[%emt 0:00:00]} 38. Rd1 {[%emt 0:01:14]} Bb4 {[%emt 0:00:00]} 39. Rxd4 {[%emt 0:01:13]} exd4 {[%emt 0:00:00]} 40. f4 {[%emt 0:01:41]} Qd7 {[%emt 0:00:00]} 41. Qd3 {[%emt 0:02:58]} g6 {[%emt 0:00:00]} 42. Bf3 {[%emt 0:00:52]} Rc8 {[%emt 0:00:00]} 43. e5 {[%emt 0:01:51]} b5 {[%emt 0:00:00]} 44. b3 {[%emt 0:03:17]} bxa4 {[%emt 0:00:00]} 45. bxa4 {[%emt 0:00:08]} Rb8 {[%emt 0:00:00]} 46. g4 {[%emt 0:00:37]} Be1 {[%emt 0:00:00]} 47. Qe4 {[%emt 0:04:12]} Rb2+ {[%emt 0:00:00]} 48. Kh3 {[%emt 0:00:28]} Bb4 {[%emt 0:00:00]} 49. e6 {[%emt 0:00:29]} Qe7 {[%emt 0:00:00]} 50. g5 {[%emt 0:02:30]} Rb3 {[%emt 0:00:00]} 51. Kg4 {[%emt 0:02:36]} Qe8 {[%emt 0:00:00]} 52. Qe5 {[%emt 0:06:08]} Rxb1 {[%emt 0:00:00]} 53. Bxc6 {[%emt 0:03:15]} Qxc6 {[%emt 0:00:00]} 54. Qb8+ {[%emt 0:00:05]} Kg7 {[%emt 0:00:00]} 55. Qa7+ {[%emt 0:02:05]} Kh8 {[%emt 0:00:00]} 56. Qb8+ {[%emt 0:00:13]} Kg7 {[%emt 0:00:00]} 57. Qa7+ {[%emt 0:00:25]} Kh8 {[%emt 0:00:00]} 58. Qb8+ {[%emt 0:00:12]} Kg7 {[%emt 0:00:00]} 1/2-1/2

[Event "GM ZIA Smirity-B 2025"]
[Site "Dhaka"]
[Date "2025.02.20"]
[Round "6.3"]
[White "Md, Mesbah Uddin"]
[Black "Neloy, Debnath"]
[Result "0-1"]
[Annotator "RC"]
[ECO "B07"]
[WhiteElo "1834"]
[BlackElo "1982"]
[PlyCount "132"]
[EventDate "2025.02.17"]
[EventType "swiss"]
[EventCountry "BAN"]
[SourceTitle "playchess.com"]
[Source "ChessBase"]
[SourceQuality "1"]
[TimeControl "5400+30"]

1. d4 {[%emt 0:24:03]} g6 {[%emt 0:01:09]} 2. e4 {[%emt 0:01:41]} d6 {[%emt 0:00:16]} 3. Nc3 {[%emt 0:00:14]} Nf6 {[%emt 0:00:17]} 4. Bf4 {[%emt 0:00:12]} c6 {[%emt 0:00:25]} 5. Qd2 {[%emt 0:00:50]} Nbd7 {[%emt 0:00:08]} 6. Nf3 {[%emt 0:00:46]} Qa5 {[%emt 0:00:58]} 7. Bc4 {[%emt 0:02:45]} b5 {[%emt 0:00:43]} 8. Bd3 {[%emt 0:00:04]} a6 {[%emt 0:01:12]} 9. O-O {[%emt 0:01:14]} Bg7 {[%emt 0:00:10]} 10. e5 {[%emt 0:02:59]} dxe5 {[%emt 0:01:13]} 11. dxe5 {[%emt 0:00:11]} Nh5 {[%emt 0:01:04]} 12. Be4 {[%emt 0:02:55]} Nxf4 {[%emt 0:06:05]} 13. Bxc6 {[%emt 0:00:30]} Nh3+ {[%emt 0:01:27]} 14. gxh3 {[%emt 0:00:39]} Rb8 {[%emt 0:00:27]} 15. e6 {[%emt 0:03:03]} fxe6 {[%emt 0:00:20]} 16. Qf4 {[%emt 0:02:12]} Qb6 {[%emt 0:03:33]} 17. Qe4 {[%emt 0:04:23]} Bb7 {[%emt 0:22:58]} 18. Bxd7+ {[%emt 0:07:42]} Kxd7 {[%emt 0:00:06]} 19. Ne5+ {[%emt 0:00:10]} Ke8 {[%emt 0:00:25]} 20. Qe2 {[%emt 0:00:47]} Qc5 {[%emt 0:04:50]} 21. Rfe1 {[%emt 0:05:17]} Rf8 {[%emt 0:00:51]} 22. Nd3 {[%emt 0:02:22]} Qc6 {[%emt 0:03:59]} 23. Qe4 {[%emt 0:00:03]} Bxc3 {[%emt 0:10:50]} 24. Qxc6+ {[%emt 0:00:34]} Bxc6 {[%emt 0:00:02]} 25. bxc3 {[%emt 0:00:20]} Bd5 {[%emt 0:00:18]} 26. a4 {[%emt 0:00:36]} Rf3 {[%emt 0:03:10]} 27. axb5 {[%emt 0:00:15]} axb5 {[%emt 0:00:14]} 28. Re3 {[%emt 0:00:03]} Rc8 {[%emt 0:03:13]} 29. Ra3 {[%emt 0:00:48]} Kf8 {[%emt 0:05:15]} 30. Nb4 {[%emt 0:02:32]} Rxe3 {[%emt 0:02:10]} 31. fxe3 {[%emt 0:00:02]} Kg7 {[%emt 0:01:19]} 32. Kf2 {[%emt 0:00:19]} Kf6 {[%emt 0:00:23]} 33. Nd3 {[%emt 0:00:41]} Rc4 {[%emt 0:02:23]} 34. Ke2 {[%emt 0:02:42]} Ra4 {[%emt 0:00:26]} 35. Rxa4 {[%emt 0:00:57]} bxa4 {[%emt 0:00:02]} 36. Kd2 {[%emt 0:00:01]} Kg5 {[%emt 0:01:03]} 37. Kc1 {[%emt 0:00:24]} a3 {[%emt 0:00:12]} 38. Kb1 {[%emt 0:00:38]} Kh4 {[%emt 0:00:24]} 39. Nf2 {[%emt 0:00:08]} h5 {[%emt 0:02:59]} 40. Ka1 {[%emt 0:01:00]} e5 {[%emt 0:02:12]} 41. Kb1 {[%emt 0:00:46]} g5 {[%emt 0:00:49]} 42. Ka1 {[%emt 0:00:12]} Be6 {[%emt 0:00:24]} 43. Kb1 {[%emt 0:00:32]} Bc4 {[%emt 0:04:06]} 44. Ka1 {[%emt 0:00:35]} Bd5 {[%emt 0:01:59]} 45. Kb1 {[%emt 0:00:16]} e4 {[%emt 0:00:08]} 46. Ka1 {[%emt 0:01:11]} Be6 {[%emt 0:06:48]} 47. Nxe4 {[%emt 0:00:51]} Bxh3 {[%emt 0:00:09]} 48. c4 {[%emt 0:00:30]} Bf5 {[%emt 0:00:35]} 49. Ng3 {[%emt 0:00:33]} Bxc2 {[%emt 0:00:36]} 50. c5 {[%emt 0:00:08]} Ba4 {[%emt 0:00:37]} 51. Ka2 {[%emt 0:00:11]} Kg4 {[%emt 0:00:26]} 52. Kxa3 {[%emt 0:00:14]} Bc6 {[%emt 0:00:09]} 53. Ne2 {[%emt 0:00:11]} Kh3 {[%emt 0:01:52]} 54. Nd4 {[%emt 0:00:02]} Bd7 {[%emt 0:00:43]} 55. e4 {[%emt 0:00:51]} g4 {[%emt 0:04:17]} 56. e5 {[%emt 0:00:27]} Kxh2 {[%emt 0:01:27]} 57. c6 {[%emt 0:00:02]} Bc8 {[%emt 0:00:51]} 58. Kb4 {[%emt 0:00:19]} g3 {[%emt 0:00:18]} 59. Kc5 {[%emt 0:00:01]} g2 {[%emt 0:00:20]} 60. Ne2 {[%emt 0:00:02]} g1=Q+ {[%emt 0:00:20]} 61. Nxg1 {[%emt 0:00:01]} Kxg1 {[%emt 0:00:03]} 62. Kb6 {[%emt 0:00:02]} h4 {[%emt 0:00:36]} 63. Kc7 {[%emt 0:00:01]} Ba6 {[%emt 0:02:13]} 64. Kd7 {[%emt 0:00:02]} h3 {[%emt 0:00:13]} 65. c7 {[%emt 0:00:11]} h2 {[%emt 0:00:07]} 66. c8=Q {[%emt 0:00:09]} Bxc8+ {[%emt 0:00:12]} 0-1

[Event "GM ZIA Smirity-B 2025"]
[Site "Dhaka"]
[Date "2025.02.20"]
[Round "6.4"]
[White "Hasan, Sk. Rashedul"]
[Black "Rahman, Ataur"]
[Result "1-0"]
[Annotator "RC"]
[ECO "B08"]
[WhiteElo "1918"]
[BlackElo "1982"]
[PlyCount "94"]
[EventDate "2025.02.17"]
[EventType "swiss"]
[EventCountry "BAN"]
[SourceTitle "playchess.com"]
[Source "ChessBase"]
[SourceQuality "1"]
[TimeControl "5400+30"]

1. e4 {[%emt 0:34:20]} Nc6 {[%emt 0:00:33]} 2. Nf3 {[%emt 0:01:15]} d6 {[%emt 0:00:52]} 3. d4 {[%emt 0:00:46]} Nf6 {[%emt 0:00:17]} 4. Nc3 {[%emt 0:00:24]} g6 {[%emt 0:01:47]} 5. h3 {[%emt 0:01:19]} Bg7 {[%emt 0:00:24]} 6. Be3 {[%emt 0:00:09]} O-O {[%emt 0:00:18]} 7. Qd2 {[%emt 0:00:01]} Re8 {[%emt 0:00:35]} 8. Bh6 {[%emt 0:00:09]} Bh8 {[%emt 0:01:35]} 9. O-O-O {[%emt 0:00:05]} a6 {[%emt 0:01:08]} 10. Ng5 {[%emt 0:01:30]} b5 {[%emt 0:04:28]} 11. f4 {[%emt 0:07:55]} e6 {[%emt 0:24:31]} 12. Qf2 {[%emt 0:04:24]} Qe7 {[%emt 0:02:53]} 13. Bd3 {[%emt 0:04:17]} Nd7 {[%emt 0:10:26]} 14. Ne2 {[%emt 0:01:16]} Nb4 {[%emt 0:01:49]} 15. c3 {[%emt 0:01:01]} Nxd3+ {[%emt 0:00:48]} 16. Rxd3 {[%emt 0:00:02]} c5 {[%emt 0:02:10]} 17. g4 {[%emt 0:00:53]} Bb7 {[%emt 0:04:40]} 18. Ng3 {[%emt 0:01:32]} cxd4 {[%emt 0:01:44]} 19. cxd4 {[%emt 0:00:05]} Rac8+ {[%emt 0:01:25]} 20. Kb1 {[%emt 0:00:01]} Rc4 {[%emt 0:02:07]} 21. Rhd1 {[%emt 0:06:21]} Rec8 {[%emt 0:01:42]} 22. e5 {[%emt 0:02:49]} Nb6 {[%emt 0:07:47]} 23. N5e4 {[%emt 0:01:00]} Qc7 {[%emt 0:04:41]} 24. Rc3 {[%emt 0:00:23]} Rxc3 {[%emt 0:02:19]} 25. Nxc3 {[%emt 0:00:04]} Nd5 {[%emt 0:01:42]} 26. Nce4 {[%emt 0:01:29]} dxe5 {[%emt 0:09:17]} 27. fxe5 {[%emt 0:00:10]} Bg7 {[%emt 0:03:07]} 28. Bxg7 {[%emt 0:01:28]} Kxg7 {[%emt 0:00:03]} 29. Nd6 {[%emt 0:00:05]} Rf8 {[%emt 0:00:57]} 30. Rc1 {[%emt 0:00:04]} Qa5 {[%emt 0:01:10]} 31. Nxb7 {[%emt 0:00:16]} Qb4 {[%emt 0:03:10]} 32. Ne4 {[%emt 0:01:20]} f5 {[%emt 0:01:46]} 33. exf6+ {[%emt 0:01:36]} Kg8 {[%emt 0:02:12]} 34. g5 {[%emt 0:01:55]} e5 {[%emt 0:00:39]} 35. Qd2 {[%emt 0:01:24]} exd4 {[%emt 0:00:33]} 36. Qxb4 {[%emt 0:00:07]} Nxb4 {[%emt 0:00:21]} 37. Rd1 {[%emt 0:00:11]} Nc6 {[%emt 0:01:12]} 38. Nbc5 {[%emt 0:00:15]} a5 {[%emt 0:00:41]} 39. Ne6 {[%emt 0:00:53]} Re8 {[%emt 0:00:13]} 40. f7+ {[%emt 0:05:25]} Kxf7 {[%emt 0:00:10]} 41. Nd6+ {[%emt 0:00:02]} Kxe6 {[%emt 0:00:49]} 42. Nxe8 {[%emt 0:00:03]} Kf5 {[%emt 0:00:33]} 43. h4 {[%emt 0:00:08]} Kg4 {[%emt 0:00:53]} 44. Rh1 {[%emt 0:00:04]} d3 {[%emt 0:01:10]} 45. Kc1 {[%emt 0:00:08]} Nb4 {[%emt 0:00:45]} 46. a3 {[%emt 0:00:10]} Nd5 {[%emt 0:00:09]} 47. Nf6+ {[%emt 0:00:06]} Kf3 {[%emt 0:01:29]} 1-0

[Event "GM ZIA Smirity-B 2025"]
[Site "Dhaka"]
[Date "2025.02.20"]
[Round "7.1"]
[White "Abdul, Momin"]
[Black "Zoar Haque, Prodhan"]
[Result "1-0"]
[Annotator "RC"]
[ECO "C42"]
[WhiteElo "1906"]
[BlackElo "1947"]
[PlyCount "65"]
[EventDate "2025.02.17"]
[EventType "swiss"]
[EventCountry "BAN"]
[SourceTitle "playchess.com"]
[Source "ChessBase"]
[SourceQuality "1"]
[TimeControl "5400+30"]

1. e4 {[%emt 0:13:01]} e5 {[%emt 0:00:02]} 2. Nf3 {[%emt 0:00:07]} Nf6 {[%emt 0:00:09]} 3. Nxe5 {[%emt 0:00:05]} d6 {[%emt 0:00:05]} 4. Nf3 {[%emt 0:00:03]} Nxe4 {[%emt 0:00:13]} 5. d4 {[%emt 0:00:02]} d5 {[%emt 0:00:02]} 6. Bd3 {[%emt 0:00:16]} Be7 {[%emt 0:00:05]} 7. O-O {[%emt 0:00:08]} Nc6 {[%emt 0:00:24]} 8. c4 {[%emt 0:00:17]} Nb4 {[%emt 0:01:00]} 9. cxd5 {[%emt 0:00:53]} Nxd3 {[%emt 0:00:11]} 10. Qxd3 {[%emt 0:00:10]} Qxd5 {[%emt 0:02:30]} 11. Nc3 {[%emt 0:08:47]} Nxc3 {[%emt 0:00:04]} 12. bxc3 {[%emt 0:00:15]} Be6 {[%emt 0:00:59]} 13. Re1 {[%emt 0:01:13]} O-O {[%emt 0:01:53]} 14. Re5 {[%emt 0:03:07]} Qd7 {[%emt 0:00:43]} 15. Rh5 {[%emt 0:02:53]} g6 {[%emt 0:02:18]} 16. Ra5 {[%emt 0:01:19]} c6 {[%emt 0:02:54]} 17. Ba3 {[%emt 0:03:16]} Bxa3 {[%emt 0:00:24]} 18. Rxa3 {[%emt 0:00:03]} Qd6 {[%emt 0:01:32]} 19. Ra5 {[%emt 0:00:48]} b5 {[%emt 0:00:30]} 20. a4 {[%emt 0:00:54]} Bc4 {[%emt 0:00:25]} 21. Qd2 {[%emt 0:00:12]} Bd5 {[%emt 0:08:39]} 22. Ne5 {[%emt 0:02:17]} Rae8 {[%emt 0:06:33]} 23. axb5 {[%emt 0:00:44]} Bxg2 {[%emt 0:00:26]} 24. Qf4 {[%emt 0:02:35]} Bh3 {[%emt 0:01:33]} 25. bxc6 {[%emt 0:00:45]} a6 {[%emt 0:02:04]} 26. Rxa6 {[%emt 0:01:49]} Qd5 {[%emt 0:00:02]} 27. Qg3 {[%emt 0:00:10]} Bc8 {[%emt 0:00:23]} 28. Ra7 {[%emt 0:01:01]} Qe4 {[%emt 0:00:53]} 29. Qg2 {[%emt 0:02:14]} Qc2 {[%emt 0:01:02]} 30. Qf3 {[%emt 0:00:24]} Bf5 {[%emt 0:00:35]} 31. R7a2 {[%emt 0:01:17]} Qb3 {[%emt 0:00:25]} 32. Nd7 {[%emt 0:01:56]} Re4 {[%emt 0:00:37]} 33. Nf6+ {[%emt 0:00:07]} 1-0

[Event "GM ZIA Smirity-B 2025"]
[Site "Dhaka"]
[Date "2025.02.20"]
[Round "7.4"]
[White "Mukitul, Islam Ripon"]
[Black "Shahinur, Haque"]
[Result "0-1"]
[Annotator "NA"]
[ECO "C01"]
[WhiteElo "1888"]
[BlackElo "1875"]
[PlyCount "130"]
[EventDate "2025.02.17"]
[EventType "swiss"]
[EventCountry "BAN"]
[SourceTitle "playchess.com"]
[Source "ChessBase"]
[SourceQuality "1"]
[TimeControl "5400+30"]

1. e4 {[%emt 0:00:05]} e6 {[%emt 0:00:05]} 2. d4 {[%emt 0:00:09]} d5 {[%emt 0:00:06]} 3. Bd3 {[%emt 0:00:23]} Nc6 {[%emt 0:01:31]} 4. c3 {[%emt 0:00:15]} e5 {[%emt 0:01:31]} 5. Ne2 {[%emt 0:07:15]} exd4 {[%emt 0:10:57]} 6. cxd4 {[%emt 1:25:23] C01: French: Exchange Variation.} Nb4 {[%emt 0:03:29]} 7. Qa4+ {[%emt 0:00:00]} Bd7 {[%emt 0:02:06]} 8. Qb3 {[%emt 0:00:00]} Nxd3+ {[%emt 0:08:29]} 9. Qxd3 {[%emt 0:00:00]} Ne7 {[%emt 0:08:46]} 10. e5 {[%emt 0:00:00]} Nf5 $11 {[%emt 0:02:37]} 11. O-O {[%emt 0:00:00]} Be7 {[%emt 0:02:57]} 12. Nbc3 {[%emt 0:00:00]} c6 {[%emt 0:00:16]} 13. Ng3 {[%emt 0:00:00]} Nh4 {[%emt 0:06:43]} 14. f4 {[%emt 0:00:00]} Qb6 {[%emt 0:07:03]} 15. f5 {[%emt 0:00:00]} O-O-O {[%emt 0:03:52]} 16. a4 {[%emt 0:00:00]} g6 {[%emt 0:06:08]} 17. f6 {[%emt 0:00:00]} Bb4 {[%emt 0:02:06]} 18. a5 {[%emt 0:00:00]} Bxa5 {[%emt 0:03:34]} 19. Na4 {[%emt 0:00:00]} Qb5 {[%emt 0:01:47]} 20. Qd1 {[%emt 0:00:00]} Nf5 {[%emt 0:02:02]} (20... h5 $11 {remains equal.}) 21. Ne2 {[%emt 0:00:00]} Bb6 {[%emt 0:03:08]} 22. Nxb6+ {[%emt 0:00:00]} Qxb6 {[%emt 0:00:27]} 23. Ra3 {[%emt 0:00:00]} h5 {[%emt 0:02:43]} 24. Rc3 {[%emt 0:00:00]} Rde8 {[%emt 0:01:17]} 25. Kh1 {[%emt 0:00:00]} h4 {[%emt 0:01:49]} 26. h3 {[%emt 0:00:00]} Qa6 {[%emt 0:02:22]} 27. b4 {[%emt 0:00:00]} Rh7 {[%emt 0:01:37]} 28. Rff3 {[%emt 0:00:00]} Reh8 {[%emt 0:02:30]} (28... Kb8 $11) 29. Rc5 {[%emt 0:00:00]} Ng3+ {[%emt 0:07:23]} 30. Nxg3 {[%emt 0:00:00]} hxg3 {[%emt 0:00:02]} 31. Rxg3 {[%emt 0:00:00]} Qa2 {[%emt 0:01:45] [#]} 32. Rc2 {[%emt 0:00:00]} (32. Kg1 $1 $16) 32... Qa4 {[%emt 0:01:12]} 33. Qd2 {[%emt 0:00:00]} Qb5 {[%emt 0:00:20]} 34. Kg1 {[%emt 0:00:00]} a6 $2 {[%emt 0:00:36]} ({Black should play} 34... b6 $1 $14) 35. Rc5 {[%emt 0:00:00]} Qb6 {[%emt 0:00:32]} 36. Qc3 {[%emt 0:00:00]} Bf5 {[%emt 0:01:08]} ({Better is} 36... Kb8 $1 $14) 37. Rxd5 {[%emt 0:00:00]} Rh4 {[%emt 0:00:47]} 38. Rc5 {[%emt 0:00:00]} Rd8 {[%emt 0:00:36]} 39. Be3 {[%emt 0:00:00]} Kb8 {[%emt 0:00:30]} 40. Bf2 {[%emt 0:00:00]} Qc7 {[%emt 0:01:23]} 41. d5 {[%emt 0:00:00]} Rxd5 {[%emt 0:00:58]} 42. Rxd5 {[%emt 0:00:00]} cxd5 {[%emt 0:00:10]} 43. Bc5 {[%emt 0:00:00]} Qc6 {[%emt 0:01:03]} 44. Qd2 {[%emt 0:00:00]} Re4 {[%emt 0:01:05]} 45. Qh6 {[%emt 0:00:00]} Qe8 {[%emt 0:00:51]} 46. b5 {[%emt 0:00:00]} axb5 {[%emt 0:00:25]} 47. Bd6+ {[%emt 0:00:00]} Kc8 {[%emt 0:00:28]} 48. Ra3 {[%emt 0:00:00]} Ra4 {[%emt 0:00:34]} 49. Rb3 {[%emt 0:00:00]} Be4 {[%emt 0:00:32]} 50. Qc1+ {[%emt 0:00:00]} Rc4 {[%emt 0:00:30]} 51. Qa3 {[%emt 0:00:00]} Kd7 {[%emt 0:00:35]} 52. Rxb5 {[%emt 0:00:00]} d4 {[%emt 0:00:28]} 53. Be7 {[%emt 0:00:00]} Ke6 $1 {[%emt 0:00:28]} 54. Qd6+ {[%emt 0:00:00]} (54. Qb3 $14 Bd5 55. Rxd5 Kxd5 56. e6) 54... Kf5 {[%emt 0:00:25]} 55. e6+ $2 {[%emt 0:00:00]} (55. Rb2 $14 Qc6 56. Rf2+ Kg5 57. e6 Qxd6 (57... fxe6 58. Qg3+ Kh5 59. Qg4+ Kh6 60. Qh4#) 58. h4+ Kxh4 59. Bxd6 Rc1+ (59... fxe6 $2 {perishes.} 60. f7 $18) 60. Kh2) 55... Qxb5 {[%emt 0:00:19]} 56. exf7 {[%emt 0:00:00]} Rc2 {[%emt 0:00:48]} 57. Qg3 {[%emt 0:01:17]} Rxg2+ {[%emt 0:00:24]} 58. Qxg2 {[%emt 0:00:32]} Bxg2 {[%emt 0:00:11]} 59. f8=Q {[%emt 0:01:20]} Qf1+ {[%emt 0:00:47]} 60. Kh2 {[%emt 0:00:04]} Qh1+ {[%emt 0:00:19]} 61. Kg3 {[%emt 0:00:03]} Qxh3+ {[%emt 0:00:35]} 62. Kf2 {[%emt 0:00:05]} Qf3+ {[%emt 0:00:43]} 63. Kg1 {[%emt 0:00:06]} Ke4 {[%emt 0:00:35]} 64. f7 {[%emt 0:01:28]} Bh3 {[%emt 0:00:28]} 65. Bc5 {[%emt 0:24:35]} Ke5 {[%emt 0:01:07]} 0-1